Cogmind - Beta 13 @@@ ROGUE MODE // 2024.04.09 @ 17:28:57 Player: dohmmass Result: Destroyed by G-47 Trooper with Particle Gun Performance ------------- Evolutions (2) 1000 Regions Visited (3) 600 Robots Destroyed (22) 110 Value Destroyed (587) 587 Prototype IDs (0) 0 Alien Tech Used (0) 0 Bonus (0) 0 TOTAL SCORE: 2297 Bonus ------- None Cogmind --------- Core Integrity 0/550 Matter 290/300 Energy 150/160 System Corruption 6% Temperature Warning (374) Movement Core (150) Ox2 Location -8/Materials Parts ------- > --- POWER (1) -------- Light Nuclear Core > --- PROPULSION (2) --- (None) > --- UTILITY (6) ------ Targeting Computer Targeting Computer > --- WEAPON (2) ------- Particle Gun > --- INVENTORY (5) ---- (None) Peak State ------------ > --- POWER ------------ Ion Engine > --- PROPULSION ------- Light Treads Armored Treads > --- UTILITY ---------- Improved Heat Sink Targeting Computer Targeting Computer Core Shielding Reflective Plating Hacking Suite > --- WEAPON ----------- EM Pulse Gun EM Pulse Gun > --- INVENTORY -------- Light Treads Reflective Plating [Rating: 19] Favorites ----------- Power Ion Engine Engine Ion Engine Power Core Light Nuclear Core Propulsion Light Treads Treads Light Treads Wheel Wheel Utility Targeting Computer Device Improved Heat Sink Processor Targeting Computer Hackware Hacking Suite Protection Reflective Plating Weapon EM Pulse Gun Energy Gun EM Pulse Gun Energy Cannon EM Pulse Cannon Build | -11 -10 -9 -8 ------- Run | Yrd Mat Mat Mat Slots Evolved 4 | . . 2 2 Power . | . . . . Propulsion . | . . . . Utility 4 | . . 2 2 Weapon . | . . . . Parts Attached 26 | 5 2 6 13 Power 3 | 1 . . 2 Engine 2 | 1 . . 1 Core 1 | . . . 1 Reactor . | . . . . Propulsion 5 | 2 . . 3 Treads 4 | 2 . . 2 Leg . | . . . . Wheel 1 | . . . 1 Hover . | . . . . Flight . | . . . . Utility 9 | . 2 3 4 Device 1 | . . 1 . Storage . | . . . . Processor 3 | . 2 1 . Hackware 1 | . . . 1 Protection 4 | . . 1 3 Artifact . | . . . . Weapon 9 | 2 . 3 4 Energy Gun 6 | 2 . 3 1 Energy Cannon 3 | . . . 3 Ballistic Gun . | . . . . Ballistic Cannon . | . . . . Launcher . | . . . . Special Weapon . | . . . . Impact Weapon . | . . . . Slashing Weapon . | . . . . Piercing Weapon . | . . . . Special Melee Weapon . | . . . . Unidentified Prototypes . | . . . . Corrupted Parts 1 | . . . 1 System Corruption 6 | . . . 6 Parts Lost 20 | . . 3 17 Power 2 | . . . 2 Propulsion 4 | . . . 4 Utility 7 | . . 1 6 Weapon 7 | . . 2 5 Highest Loss Streak 7 | . . 2 7 To Critical Strikes . | . . . . Average Slot Usage (%) 87 | . 95 98 64 Engine 9 | . 14 11 3 Treads 19 | . 28 22 8 Device 6 | . . 11 6 Processor 22 | . 23 25 18 Protection 6 | . . 6 12 Energy Gun 19 | . 28 21 7 Energy Cannon 1 | . . . 3 Naked Turns . | . . . . Heaviest Build 17 | 9 9 14 17 Greatest Support 40 | 40 40 40 40 Greatest Overweight (x) 1 | . . . 1 Average Overweight (x) . | . . . . Largest Inventory Capacity 5 | 5 5 5 5 Average Capacity 5 | 5 5 5 5 Most Carried 5 | 5 5 4 3 Average Carried 2 | . 3 2 1 Final Capacity 5 | 5 5 5 5 Final Carried 5 | . 5 3 . Class Distribution -------------------- 100% | Mutant Dominant Class ---------------- Mutant | -10/Materials Mutant | -9/Materials Mutant | -8/Materials Resources | -11 -10 -9 -8 ----------- Run | Yrd Mat Mat Mat Matter Collected 390 | 169 101 55 65 Remotely . | . . . . Salvage Created 985 | . 369 193 423 Parts 56 | . 17 18 21 Haulers Intercepted 1 | . 1 . . Recyclers Shooed 1 | . . . 1 Parts Field Recycled . | . . . . Retrieved Matter . | . . . . Parts Self-Destructed . | . . . . Prevented . | . . . . Kills | -11 -10 -9 -8 ------- Run | Yrd Mat Mat Mat Combat Hostiles Destroyed 16 | . 7 4 5 Guns 8 | . 4 2 2 Cannons 3 | . . . 3 AOE 5 | . 3 2 . Classes Destroyed 8 | . 4 3 1 Builder 1 | . . 1 . Tunneler 1 | . . . 1 Hauler 1 | . 1 . . Recycler 2 | . 1 . 1 Watcher 1 | . . 1 . Swarmer 5 | . 3 2 . Grunt 8 | . 4 . 4 Sentry 3 | . . 2 1 Best Kill Streak 4 | . 4 2 3 Combat Bots Only 3 | . 3 2 3 Max Kills in Single Turn 3 | . 3 2 1 Gunslinging . | . . . . Exploded 2 | . 2 2 . Melee . | . . . . Uniques/NPCs Destroyed . | . . . . Combat | -11 -10 -9 -8 -------- Run | Yrd Mat Mat Mat Hostile Shots Fired 221 | . 11 35 175 Missed 65 | . 5 12 48 Damage Taken 2329 | . 108 311 1910 Core 618 | . . 59 559 Absorbed by Shields . | . . . . Redirected to Shielding 49 | . . . 49 Ignored by Resistances 124 | . . 8 116 Regen/Repaired (Parts) 41 | . . 41 . Core Remaining (%) 95 | 100 100 85 . Volleys Fired 58 | . 11 16 31 Largest 2 | . 2 2 2 Hottest 126 | . 80 80 126 Shots Fired 94 | . 22 30 42 Gun 79 | . 22 30 27 Cannon 15 | . . . 15 Launcher . | . . . . Special . | . . . . Kinetic . | . . . . Thermal 3 | . . . 3 Explosive . | . . . . Electromagnetic 91 | . 22 30 39 Robot Hit Streak 17 | . 4 5 17 Robot Miss Streak 3 | . 2 2 3 Penetration Max . | . . . . Secondary Targets . | . . . . Shots Hit Robots 68 | . 14 20 34 Core Hits 34 | . 11 8 15 Critical Kills . | . . . . Critical Parts Destroyed . | . . . . Critical Strikes 1 | . . . 1 Corrupt 1 | . . . 1 Melee Attacks . | . . . . Impact . | . . . . Slashing . | . . . . Piercing . | . . . . Sneak Attacks . | . . . . Combat Hostiles . | . . . . Follow-up Attacks . | . . . . Damage Inflicted 1289 | . 349 298 642 Guns 673 | . 159 238 276 Cannons 351 | . . . 351 Explosions 250 | . 190 60 . Melee . | . . . . Ramming 15 | . . . 15 Kinetic . | . . . . Thermal 292 | . 190 60 42 Explosive . | . . . . Electromagnetic 982 | . 159 238 585 Impact . | . . . . Slashing . | . . . . Piercing . | . . . . Highest Corruption 6 | . . . 6 Average Corruption 6 | . . . 6 Corruption Purged . | . . . . Corruption Blocked . | . . . . Effects 1 | . . . 1 Heat Flow Errors 1 | . . . 1 Overload Shots . | . . . . Overflow Damage . | . . . . Projectiles . | . . . . Explosions . | . . . . Melee . | . . . . Knockbacks . | . . . . Impact . | . . . . Kinetic . | . . . . Secondary . | . . . . Self-Inflicted Damage 95 | . 52 40 3 Shots 2 | . 1 1 . Rammed 7 | . . . 7 Targets Rammed 7 | . . . 7 Kicked . | . . . . Crushed . | . . . . Highest Temperature 365 | . 90 19 365 Average Temperature 57 | . 33 6 79 Received Heat Transfer 1332 | . 18 90 1224 Siege Activations . | . . . . Robots Corrupted . | . . . . Combat Hostiles . | . . . . Parts Fried 2 | . 1 . 1 Impact Corruptions . | . . . . Robots Melted . | . . . . Combat Hostiles . | . . . . Parts Melted . | . . . . Heat Transferred 311 | . 150 50 111 Parts Sabotaged . | . . . . Parts Stolen . | . . . . Parts Stripped . | . . . . Power Chain Reactions 3 | . 2 1 . Alert | -11 -10 -9 -8 ------- Run | Yrd Mat Mat Mat Peak Influence 253 | . 214 220 253 Initial 90 | . . 90 8 Average 102 | . 72 149 84 Maximum Alert Level 1 | . 1 1 1 Low Security (%) 90 | 100 92 92 86 Level 1 9 | . 7 7 13 Level 2 . | . . . . Level 3 . | . . . . Level 4 . | . . . . Level 5 . | . . . . High Security . | . . . . Max Security . | . . . . Squads Dispatched 2 | . . . 2 Investigation . | . . . . Extermination . | . . . . Reinforcement 2 | . . . 2 Assault . | . . . . Garrison . | . . . . Intercept . | . . . . Searches Triggered . | . . . . Construction Impeded . | . . . . Haulers Reinforced . | . . . . Active Scanning Responses . | . . . . Cargo Convoy Interrupts . | . . . . Stealth | -11 -10 -9 -8 --------- Run | Yrd Mat Mat Mat Distress Signals 3 | . 1 1 1 Communications Jammed . | . . . . Distress Signals . | . . . . Times Spotted 40 | . 10 6 24 Peak Tracking Total 13 | . 3 3 13 Tactical Retreats 6 | . . . 6 Traps | -11 -10 -9 -8 ------- Run | Yrd Mat Mat Mat Traps Triggered . | . . . . Indirectly . | . . . . Trap Hack Attempts . | . . . . Triggered . | . . . . Disarmed . | . . . . Reprogrammed . | . . . . Reused . | . . . . Traps Extracted . | . . . . Installed . | . . . . Triggered . | . . . . Machines | -11 -10 -9 -8 ---------- Run | Yrd Mat Mat Mat Machines Disabled 2 | . . 1 1 Max in Single Turn 1 | . . 1 1 Machines Repaired . | . . . . Machines Dismantled . | . . . . Machines Sabotaged . | . . . . Overloaded Fab Kills . | . . . . Hacking | -11 -10 -9 -8 --------- Run | Yrd Mat Mat Mat Machines Accessed 1 | . . 1 . Terminals . | . . . . Fabricators . | . . . . Repair Stations 1 | . . 1 . Recycling Units . | . . . . Scanalyzers . | . . . . Garrison Access . | . . . . Total Hacks 2 | . . 2 . Successful 2 | . . 2 . Failed . | . . . . Catastrophic . | . . . . Database Lockouts . | . . . . Manual . | . . . . Terminals . | . . . . Fabricators . | . . . . Repair Stations 2 | . . 2 . Recycling Units . | . . . . Scanalyzers . | . . . . Garrison Access . | . . . . Terminal Hacks . | . . . . Fabricator Hacks . | . . . . Repair Station Hacks 2 | . . 2 . Scan Component 1 | . . 1 . Repair 1 | . . 1 . Recycling Unit Hacks . | . . . . Scanalyzer . | . . . . Garrison Access Hacks . | . . . . Unauthorized Hacks . | . . . . Terminals . | . . . . Fabricators . | . . . . Repair Stations . | . . . . Recycling Units . | . . . . Scanalyzers . | . . . . Garrison Access . | . . . . Data Cores Recovered . | . . . . Used . | . . . . Hacking Detections 1 | . . 1 . Full Trace Events . | . . . . Feedback Events . | . . . . Feedback Blocked . | . . . . Robot Schematics Acquired . | . . . . Robots Built . | . . . . Authchips . | . . . . Time . | . . . . Total Robot Build Rating . | . . . . Part Schematics Acquired . | . . . . Parts Built . | . . . . Authchips . | . . . . Time . | . . . . Total Part Build Rating . | . . . . Parts Repaired 1 | . . 1 . Time 26 | . . 26 . Parts Recycled . | . . . . Recycled Matter . | . . . . Retrieved Matter . | . . . . Retrieved Components . | . . . . Parts Scanalyzed . | . . . . Part Schematics Acquired . | . . . . Parts Damaged . | . . . . Bothacking | -11 -10 -9 -8 ------------ Run | Yrd Mat Mat Mat Used RIF Installer . | . . . . Robots Hacked . | . . . . Non-combat . | . . . . Combat . | . . . . Robot Hacks Applied . | . . . . Relay Couplers Released . | . . . . Fabnet Peak Effective % . | . . . . Robots Rewired . | . . . . Allies Hacked . | . . . . Hacks Repelled . | . . . . Allies | -11 -10 -9 -8 -------- Run | Yrd Mat Mat Mat Total Allies . | . . . . Largest Group . | . . . . Highest-Rated Group . | . . . . Highest-Rated Ally . | . . . . Total Orders . | . . . . Ally Attacks . | . . . . Total Damage . | . . . . Kills . | . . . . Allies Corrupted . | . . . . Allies Melted . | . . . . Intel | -11 -10 -9 -8 ------- Run | Yrd Mat Mat Mat Robot Analysis Total . | . . . . Derelict Logs Recovered . | . . . . Drone Launches . | . . . . Drone Recoveries . | . . . . Exploration | -11 -10 -9 -8 ------------- Run | Yrd Mat Mat Mat Turns Passed 1128 | 36 327 426 339 Spaces Moved 602 | 23 173 216 190 Core 74 | 9 . . 65 Treads 494 | 14 173 216 91 Legs . | . . . . Wheels 34 | . . . 34 Hover . | . . . . Flight . | . . . . Fastest Speed 50 | 50 160 160 50 Average Speed 143 | 116 160 160 113 Slowest Speed 170 | 160 160 160 170 Overloaded Moves . | . . . . Propulsion Burnouts . | . . . . Robots Hopped . | . . . . Cave-ins Triggered . | . . . . Exploration Rate (%) 21 | 3 41 19 23 Regions Visited 3 Branch Regions . Pre-discovered Areas . | . . . . Known Exits Taken . | . . . . Unknown Exits Taken 3 | 1 1 1 . Scrap Searched . | . . . . Spaces Dug . | . . . . Terrain Destroyed 15 | . 13 2 . Melee . | . . . . Projectile . | . . . . AOE 15 | . 13 2 . Terrain Rammed . | . . . . Walls Destroyed . | . . . . Machines Disabled . | . . . . Actions | -11 -10 -9 -8 --------- Run | Yrd Mat Mat Mat Total 768 | 32 201 267 268 Wait 53 | . 9 26 18 Move 599 | 22 172 215 190 Hop . | . . . . Pick Up 25 | 5 7 4 9 Fast Attach . | . . . . Attach 25 | 5 2 6 12 Detach . | . . . . Swap 1 | . . . 1 Drop . | . . . . Fire 58 | . 11 16 31 Melee . | . . . . Ram 6 | . . . 6 Kick . | . . . . Crush 1 | . . . 1 Escape Stasis . | . . . . Rewire . | . . . . Trap . | . . . . Miscellaneous . | . . . . Route ------- -11/Scrapyard -10/Materials (discovered 2 exits: *Mat / [*Min]) -9/Materials -8/Materials History --------- Turn | Location | Event 5 | -11/Scrapyard | Discovered new exit (range 16) 37 | -11/Scrapyard | Entered Materials 241 | -10/Materials | Discovered new exit (range 7) 300 | -10/Materials | Build established: Mutant 318 | -10/Materials | Discovered new exit (range 16) 364 | -10/Materials | Entered another Materials area 364 | -9/Materials | Evolved 2 slots: Utility x2 636 | -9/Materials | Repaired EM Pulse Gun 778 | -9/Materials | Discovered new exit (range 5) 790 | -9/Materials | Entered another Materials area 790 | -8/Materials | Evolved 2 slots: Utility x2 961 | -8/Materials | Lost 7 parts (1p2n2u2w) 1026 | -8/Materials | Core integrity fell below 50% 1045 | -8/Materials | Lost 6 parts (1n4u1w) 1118 | -8/Materials | Core integrity fell below 20% 1129 | -8/Materials | Destroyed by G-47 Trooper with Particle Gun Last Messages --------------- 01048_ Acquired Wheel. 01050_ Acquired 10 matter. 01070_ Acquired Lgt. Deuterium Engine. 01082_ Hadron Collector disabled. 01090_ G-47 Trooper IFF system glitched. 01093_ G-47 Trooper destroyed. 01094_ Critical hit (Burn: +37). 01100_ G-47 Trooper destroyed. 01107_ Lgt. Deuterium Engine destroyed. 01111_ Acquired Corrupted Lgt. Nuclear Core. 01111_ Wheel destroyed. 01112_ Integrated Corrupted Lgt. Nuclear Core (+6). 01113_ Critical hit (Burn: +37). 01116_ Imp. Heat Sink fried. 01116_ G-47 Trooper destroyed. 01117_ Acquired 20 matter. 01117_ EM Pulse Cannon destroyed. 01122_ Acquired Particle Gun. 01125_ System corrupted: Heat flow error (+298). Map ----- +----------------------------------------------------+ | ###+###??????????????????????? | | #??????????????????????? | | #??????????????????????? | | #??????????????????????? | | """ #??????????????????????? | | """ #??????????????????????? | | """ #??????????????????????? | | #????????????? ???????? | | """ #????????????? ???????? | | "" #????????????? ???????? | | """ #????????????# ???????? | | #????????????# #??????? | | +######????????????+ #??????? | | #???????????????# +??????? | | [ #???????????????# #??????? | | [ #???????????????# #??????? | | %% #???????????????# #??????? | | #???????????????# #??????? | | #???????????????# #??????? | | #???????????????# #??????? | | #+##??????########?# ######## | | # ###?????# """ #?# +*"""" # | | #?????# """ #?# #g"""" # | | ####### """ #?# #=g""" # | | + #?# #%== # | | ####### #?# #=!@ ! # | | #?????# #?# #* # | | ##?????####+##### ######## | | #??????# ## #?#####? | | #??????# ## # # | | #??????# ## # ]] =# | | #??????# ###### + ]] # | | #??????# #????# # ]] # | | #??????# #??### #######? | | ####### #??# #????? | | #### #????? | | T #????? | | #????? | | ### ##### #????? | | ####??# #???# #????? | | ??????#! !#??####+#####???? | | ??????##!!!!##??# =% #???? | | ???????#####????# %| #???? | | ????????????????# #???? | | ????????????????# #???? | | ????????????????# #???? | | ????????????????# #???? | | ????????????????# " "" #???? | | ????????????????# "R"" #???? | | ????????????????# """" #???? | +----------------------------------------------------+ Best States ------------- Heat Dissipation 45 Energy Generation 14 Energy Capacity 250 Matter Stores 300 Matter Capacity 300 Sight Range 16 Terrain Scan Density 10 Armor Coverage 300 Resistance: TH 10 Core Shielding 20 Evasion (%) 50 Targeting Accuracy 15 Recoil Reduction 2 Offensive Hacking 10 Item Schematics ----------------- None Robot Schematics ------------------ None Fabricated ------------ Nothing Alien Tech Used ----------------- None Achievements -------------- None Challenges ------------ None Game ------ Seed SpreadTrackerDoomcannon Manual? 0 Play Time 00:10:05 Cumulative 29.3 hours Start 2024.04.09 @ 17:20:02 End 2024.04.09 @ 17:28:57 Sessions 1 Manual Loads 0 Difficulty Rogue Special Mode None Game No. 62 Rogue 62 Adventurer 0 Explorer 0 Win Type - Total 0 Types 0/0/0/0/0/0/0/0/0 Lore% 17 Gallery% 33 Achievement% 22 Wizard Run 0 Options --------- Layout 1 ASCII 0 Keyboard 0 Movement Mouse Keybinds 0 Fullscreen 1 Font 24/Smallcaps Map View 50x35 Zoom Use 0% Tactical HUD 1 Map Filters NONE Filters NONE Steam 1 RUN: b9e36b1a-8459-48fc-ba3b-9d6b38a9943c